bitfinex/quotes_ETHUSD_20240716
["timestamp","ask_amount","ask_price","bid_price","bid_amount"]
[1721144542868,2.8788,3473.7,3472.4,2.87984]
[1721144543069,2.87886,3473.6,3472.5,0.287984]
[1721144543300,2.87863,3473.9,3471.9,2.4385]
[1721144543541,2.87889,3473.6,3472.3,2.87993]
[1721144543881,2.87889,3473.6,3472.0,2.88018]
[1721144543882,2.87894,3473.5,3472.0,2.88015]
[1721144544080,2.87819,3474.4,3471.9,5.31876]
[1721144544081,2.87919,3473.2,3471.9,5.31876]
[1721144544263,2.87845,3474.1,3472.6,2.4869]
[1721144544595,6.29512,3474.5,3473.4,2.87901]
[1721144544793,2.87795,3474.7,3473.4,2.87901]
[1721144544958,2.87771,3475.0,3473.5,2.4869]
[1721144545161,3.417,3475.2,3473.6,2.87877]
[1721144545393,2.8781,3474.6,3473.7,0.536567]
[1721144545694,6.29453,3475.2,3473.7,0.536567]
[1721144545914,6.29453,3475.2,3474.0,2.87847]
[1721144546094,6.29453,3475.2,3473.7,0.536567]
[1721144546095,2.87775,3475.0,3473.7,0.536567]
[1721144546311,3.417,3475.2,3473.7,0.536567]
[1721144546312,2.87798,3474.7,3473.7,0.536567]
[1721144546489,2.87819,3474.4,3473.5,2.4869]
[1721144546871,0.04456195,3474.3,3473.5,2.4869]
[1721144547976,2.87798,3474.7,3473.5,2.4869]
[1721144548177,2.87819,3474.4,3473.5,2.4869]
[1721144548640,0.04456195,3474.3,3473.5,2.4869]
[1721144548928,2.87853,3474.0,3473.5,2.4869]
[1721144549481,2.87876,3473.8,3472.8,2.3925]
[1721144549809,2.87876,3473.8,3472.8,2.919718]
[1721144549980,5.92425,3474.4,3472.8,2.919718]
[1721144549981,0.04455105,3473.7,3472.9,2.93694536]
[1721144550180,6.046,3474.6,3473.3,2.87909]
[1721144550181,2.87808,3474.6,3473.3,2.87909]
[1721144550384,0.04455105,3474.5,3473.3,2.87909]
[1721144550614,2.87836,3474.2,3473.1,2.87926]
[1721144550914,2.92266105,3474.5,3473.0,2.2818]
[1721144550915,2.87887,3473.6,3473.0,2.2818]
[1721144551125,0.04456741,3474.1,3473.0,2.2818]
[1721144551325,0.04457104,3473.5,3473.0,2.2818]
[1721144551525,2.87886,3473.6,3473.0,2.2818]
[1721144551831,2.92352104,3473.5,3473.0,2.2818]
[1721144552197,2.87912,3473.3,3472.4,2.4476]
[1721144552393,2.87967,3472.7,3472.0,0.577336]
[1721144552629,2.92431104,3472.6,3471.8,2.4771]
[1721144552842,2.87995,3472.3,3471.8,2.4771]
[1721144553055,2.8801,3472.1,3470.9,2.4771]
[1721144553260,0.04442565,3472.2,3471.0,2.88094]
[1721144553525,3.417,3472.8,3470.9,2.4771]
[1721144553526,3.417,3472.8,3471.6,2.88045]
[1721144553730,0.04442565,3472.1,3471.7,0.576111]
[1721144553893,2.88036,3471.8,3470.9,2.4771]
[1721144554293,0.04422205,3471.7,3471.0,2.88099]
[1721144554526,0.04422205,3471.7,3471.3,2.88076]
[1721144554731,2.8801,3472.1,3471.0,2.88099]
[1721144554905,0.04422205,3471.6,3471.1,0.823926]
[1721144555105,3.417,3472.8,3471.0,2.88101]
[1721144555106,2.88008,3472.2,3471.0,2.88101]
[1721144555309,2.8801,3472.1,3470.9,2.4771]
[1721144555619,2.88044,3471.7,3470.9,2.4771]
[1721144555802,2.88044,3471.7,3471.0,0.24771]
[1721144556006,2.88066,3471.5,3470.9,2.4771]
[1721144556217,6.463,3472.1,3470.9,2.4771]
[1721144556218,2.88086,3471.2,3470.9,2.4771]
[1721144556444,2.88086,3471.2,3468.8,7.3]
[1721144556445,2.88124,3470.8,3470.0,2.2599]
[1721144556654,2.88151,3470.4,3470.0,2.2599]
[1721144556947,2.88176,3470.1,3469.3,2.2599]
[1721144557122,2.88176,3470.1,3469.4,0.514239]
[1721144557454,6.463,3470.7,3469.3,2.2599]
[1721144557455,0.04422205,3470.0,3469.3,2.2599]
[1721144557750,2.88227,3469.5,3469.3,2.2599]
[1721144557952,2.88234,3469.4,3468.6,2.2599]
[1721144558251,0.04399651,3469.4,3468.6,2.2599]
[1721144558551,2.88266,3469.1,3468.6,2.2599]
[1721144558978,0.04372231,3469.0,3468.6,2.2599]
[1721144559153,0.04372231,3469.0,3468.6,2.48589]
[1721144559451,2.88217,3469.6,3468.6,5.36882]
[1721144559615,0.04372231,3468.9,3468.6,5.36882]
[1721144559818,2.88194,3469.9,3468.6,2.48589]
[1721144560018,0.04372231,3469.8,3468.6,2.48589]
[1721144560320,0.04372231,3469.8,3468.9,2.88274]
[1721144560520,0.04372231,3469.8,3469.0,2.88266]
[1721144560723,3.417,3470.0,3469.0,2.88266]
[1721144560984,0.04279951,3469.7,3468.9,2.88274]
[1721144561255,2.88101,3471.0,3470.0,2.88183]
[1721144561470,2.8811,3470.9,3469.8,5.29311]
[1721144561647,2.88118,3470.8,3469.9,2.88192]
[1721144562020,0.04156014,3470.7,3469.9,2.88192]
[1721144562263,0.04156014,3470.7,3470.0,3.69935]
[1721144562629,3.417,3471.4,3470.0,0.81751]
[1721144562960,3.417,3471.4,3470.4,2.88144]
[1721144563118,2.88096,3471.1,3469.8,5.29307]
[1721144563325,0.04167693,3471.3,3469.8,2.4111]
[1721144563520,3.417,3471.4,3470.3,2.88151]
[1721144563720,0.04167693,3471.2,3470.3,2.88151]
[1721144563949,3.417,3471.4,3470.4,0.288151]
[1721144564151,2.88108,3471.0,3470.4,0.288151]
[1721144564352,2.88108,3471.0,3470.0,2.88184]
[1721144564731,0.04167693,3470.9,3470.0,2.88184]
[1721144564929,0.04167693,3470.9,3470.1,2.88175]
[1721144565139,0.04167693,3470.9,3470.6,2.88131]
[1721144565440,2.88036,3471.8,3470.9,2.88107]
[1721144565652,2.88036,3471.8,3471.0,0.288107]
[1721144565841,3.417,3472.1,3471.0,0.288107]
[1721144565842,2.88053,3471.6,3471.0,0.288107]
[1721144566527,2.88028,3471.9,3471.0,0.288107]
[1721144566743,2.88051,3471.7,3471.0,0.288107]
[1721144567231,9.3431,3472.1,3470.9,2.3073]
[1721144567435,2.88068,3471.4,3470.9,2.3073]
[1721144567764,2.88103,3471.0,3470.1,2.3877]
[1721144568062,2.8808,3471.3,3470.3,2.88159]
[1721144568265,2.88059,3471.5,3470.3,2.88159]
[1721144568266,2.88085,3471.2,3470.3,2.88159]
[1721144568568,2.88058,3471.6,3470.4,0.815099]
[1721144568756,2.88061,3471.5,3470.6,2.88133]
[1721144568939,2.88061,3471.5,3470.7,2.88125]
[1721144569144,3.046,3472.7,3470.8,0.05761986]
[1721144569358,3.046,3472.7,3470.5,2.419]
[1721144569359,3.046,3472.7,3471.2,2.88084]
[1721144569558,2.88002,3472.2,3471.2,3.457032]
[1721144569901,2.88019,3472.0,3471.2,3.457032]
[1721144570062,2.88014,3472.1,3471.2,3.457032]
[1721144570385,6.29658,3472.8,3471.6,5.29945]
[1721144570386,3.417,3472.8,3471.6,5.29945]
[1721144570531,3.417,3472.8,3471.8,2.88034]
[1721144570532,2.87953,3472.8,3471.8,2.88034]
[1721144570730,2.87888,3473.6,3471.8,0.817991]
[1721144570931,3.417,3474.2,3471.8,0.817991]
[1721144571198,3.417,3474.2,3472.1,2.88003]
[1721144571199,2.87906,3473.4,3472.1,2.88003]
[1721144571377,2.87924,3473.2,3472.1,2.88003]
[1721144571578,2.87924,3473.2,3472.0,2.88017]
[1721144571734,5.92484,3473.7,3471.8,3.698331]
[1721144571735,2.87928,3473.1,3472.1,3.5379401]
[1721144571935,2.87942,3473.0,3472.1,3.5379401]
[1721144572338,2.87903,3473.4,3472.1,3.5379401]
[1721144572539,2.87903,3473.4,3472.4,2.87983]
[1721144572738,3.417,3474.2,3472.7,2.4636]
[1721144572986,2.879,3473.5,3472.7,2.4636]
[1721144573183,2.87873,3473.8,3472.7,5.34319]
[1721144573477,2.87877,3473.7,3472.8,2.87944]
[1721144573680,2.87877,3473.7,3472.8,3.701703]
[1721144573833,2.87885,3473.7,3472.8,0.822263]
[1721144574032,2.87886,3473.6,3472.8,0.822263]
[1721144574265,6.29542,3474.2,3472.8,0.822263]
[1721144574468,2.87878,3473.7,3472.7,2.4636]
[1721144574670,2.87897,3473.5,3472.7,5.3432]
[1721144574847,2.87878,3473.7,3472.7,5.3432]
[1721144575168,2.87828,3474.3,3473.3,2.8791]
[1721144575342,2.87829,3474.3,3473.3,2.8791]
[1721144575543,3.417,3474.8,3473.5,2.87892]
[1721144575544,2.87811,3474.5,3473.5,2.87892]
[1721144575855,3.417,3474.8,3473.6,2.4636]
[1721144576177,2.87828,3474.3,3473.6,2.4636]
[1721144576343,2.87839,3474.2,3473.6,2.4636]
[1721144576742,3.417,3474.8,3473.0,2.87933]
[1721144576743,3.046,3474.7,3473.0,2.3196]
[1721144577043,2.87885,3473.7,3473.0,2.3196]
[1721144577370,0.04290595,3473.6,3473.0,5.718851]
[1721144577883,0.04290595,3473.5,3473.0,5.718851]
[1721144578085,2.87815,3474.5,3473.0,5.718851]
[1721144578288,2.87869,3473.8,3473.0,2.839511]
[1721144578710,2.87886,3473.6,3473.0,2.839511]
[1721144579203,2.87834,3474.3,3473.1,0.2839511]
[1721144579487,1.6415,3475.7,3473.1,0.2839511]
[1721144579673,3.0279481,3475.1,3474.1,2.87839]
[1721144579875,0.04290595,3474.7,3474.1,2.87839]
[1721144580077,2.87796,3474.7,3473.9,2.8786]
[1721144580278,2.92103965,3474.6,3473.7,2.3196]
[1721144580463,2.87816,3474.5,3473.7,2.3196]
[1721144580663,2.87784,3474.9,3473.7,2.3196]
[1721144580984,2.92113965,3474.4,3473.7,2.3196]
[1721144581176,2.87828,3474.3,3473.7,2.3196]
[1721144581401,0.04294965,3474.3,3473.7,2.839456]
[1721144581558,2.87853,3474.0,3473.7,2.3196]
[1721144581755,2.87866,3473.9,3472.7,2.3516]
[1721144582075,2.87892,3473.6,3472.7,2.3516]
[1721144582456,2.87892,3473.6,3472.8,2.8795]
[1721144582792,5.92413,3474.5,3472.7,2.3516]
[1721144582793,0.04294965,3473.5,3472.7,2.3516]
[1721144583087,2.8792,3473.2,3472.7,2.3516]
[1721144583552,6.463,3474.1,3472.7,2.3516]
[1721144583553,2.87933,3473.1,3472.7,2.3516]
[1721144583755,2.87944,3472.9,3472.7,2.3516]
[1721144583968,0.04305894,3473.1,3472.7,2.58676]
[1721144584263,3.0279281,3475.1,3472.9,5.20841]
[1721144584477,2.87784,3474.9,3473.4,2.329]
[1721144584790,0.04147363,3475.0,3473.4,2.329]
[1721144584791,0.04147363,3475.0,3473.5,2.87888]
[1721144585002,0.04138096,3474.8,3473.5,2.87888]
[1721144585201,3.0279281,3475.1,3473.6,0.808697]
[1721144585202,2.87818,3474.5,3473.6,0.808697]
[1721144585573,2.87818,3474.5,3473.7,2.87876]
[1721144585882,0.0413828,3474.4,3473.7,2.87876]
[1721144586225,0.0413828,3474.4,3473.6,0.808697]
[1721144586575,0.0413828,3474.4,3473.8,2.3055]
[1721144586772,0.0413828,3474.4,3474.2,2.87834]
[1721144587092,0.0413828,3474.3,3474.2,2.87834]
[1721144587603,3.0279881,3475.1,3474.3,2.4992]
[1721144587785,2.87771,3475.0,3474.3,2.4992]
[1721144587997,2.87786,3474.8,3474.3,2.4992]
[1721144588498,0.04156353,3474.7,3474.3,2.4992]
[1721144588680,2.87771,3475.0,3474.3,3.036972]
[1721144588874,0.04156353,3474.6,3474.3,3.036972]
[1721144589191,2.87771,3475.0,3474.3,3.036972]
[1721144589408,0.04156353,3474.5,3474.4,2.87813]
[1721144589727,0.1503181,3475.1,3474.4,2.87813]
[1721144589933,0.1503181,3475.1,3474.3,3.036972]
[1721144589934,0.04161463,3474.5,3474.3,3.036972]
[1721144590135,3.0279481,3475.1,3474.3,3.036972]
[1721144590420,0.04184645,3474.4,3474.3,5.915242]
[1721144590591,0.1503181,3475.1,3474.5,2.8781]
[1721144590786,0.1503181,3475.1,3474.6,0.8793322]
[1721144591127,0.04184827,3475.0,3474.6,3.81488685]
[1721144591579,0.04184827,3475.0,3474.6,0.8793322]
[1721144591784,0.04184827,3475.0,3474.3,3.036972]
[1721144592180,2.91956827,3475.0,3474.3,3.036972]
[1721144592687,2.91956827,3475.0,3474.3,2.4992]
[1721144593215,0.04184827,3475.0,3474.3,2.4992]
[1721144593418,0.04184827,3475.0,3474.5,2.87807]
[1721144593620,0.1503181,3475.1,3474.8,2.87779]
[1721144593780,0.04188112,3474.9,3474.8,2.87779]
[1721144593982,0.1503181,3475.1,3475.0,5.75538]
[1721144594181,0.1503181,3475.1,3474.8,2.978776]
[1721144594407,0.1503181,3475.1,3475.0,2.87769]
[1721144595320,0.1503181,3475.1,3475.0,8.18128]
[1721144595687,0.1503181,3475.1,3475.0,5.30359]
[1721144596413,0.1503181,3475.1,3475.0,8.18128]
[1721144596996,0.1503181,3475.1,3475.0,2.4259]
[1721144597304,0.19104482,3475.1,3475.0,2.4259]
[1721144597512,0.19104482,3475.1,3475.0,5.833972]
[1721144597712,0.1503181,3475.1,3475.0,8.711662]
[1721144599806,0.1503181,3475.1,3475.0,5.833972]
[1721144599984,0.1503181,3475.1,3475.0,8.711662]
[1721144600791,0.1503181,3475.1,3475.0,2.4259]
[1721144601030,0.1503181,3475.1,3474.3,3.046]
[1721144601031,0.1503181,3475.1,3474.3,2.3322]
[1721144601343,0.04072307,3475.0,3474.3,2.3322]
[1721144601637,2.87794,3474.7,3473.7,2.3001]
[1721144601792,2.87808,3474.6,3473.7,2.818002]
[1721144601994,2.87811,3474.5,3473.7,2.818002]
[1721144602214,0.0407176,3474.6,3473.7,2.818002]
[1721144602422,0.04078143,3474.4,3473.7,2.818002]
[1721144602634,2.87828,3474.3,3473.7,2.3001]
[1721144602797,2.91906143,3474.3,3473.7,2.3001]
[1721144603321,0.04078143,3474.3,3473.7,2.3001]
[1721144603534,2.87844,3474.1,3473.7,2.3001]
[1721144603738,0.04078143,3474.3,3473.7,2.3001]
[1721144603739,2.87853,3474.0,3473.7,2.3001]
[1721144603909,3.252,3474.5,3473.7,2.3001]
[1721144603910,2.87863,3473.9,3473.7,2.3001]
[1721144604126,0.04054613,3473.9,3472.8,2.4296]
[1721144604433,2.87877,3473.7,3472.9,0.859035]
[1721144604640,2.879,3473.5,3472.8,2.4296]
[1721144604792,2.87877,3473.7,3472.8,2.4296]
[1721144604793,2.87904,3473.4,3472.8,2.4296]
[1721144605134,2.87929,3473.1,3472.8,2.4296]
[1721144605295,0.04051329,3473.3,3472.2,2.3396]
[1721144605493,2.87887,3473.6,3472.3,0.23396]
[1721144605796,2.87904,3473.4,3472.3,3.11389]
[1721144605989,0.04051329,3473.5,3472.2,2.3396]
[1721144605990,2.87972,3472.6,3472.2,2.3396]
[1721144606228,2.87983,3472.5,3472.2,2.3396]
[1721144606494,0.04051329,3472.5,3472.2,2.3396]
[1721144606893,2.92029329,3472.5,3472.2,2.3396]
[1721144607089,0.04051329,3472.5,3472.2,2.3396]
[1721144607296,2.87927,3473.1,3472.2,2.57356]
[1721144607523,2.87907,3473.4,3472.2,2.57356]
[1721144607729,1.6415,3473.3,3471.3,2.3252]
[1721144608025,2.88011,3472.1,3471.3,2.3252]
[1721144608589,0.04051329,3472.0,3471.3,2.3252]
[1721144608793,2.92070329,3472.0,3471.3,2.3252]
[1721144609028,2.92070329,3472.0,3471.4,0.23252]
[1721144609229,2.88041,3471.8,3471.4,0.23252]
[1721144609534,2.88056,3471.6,3471.4,0.23252]
[1721144609896,2.88044,3471.7,3471.4,0.23252]
[1721144610207,5.92554,3472.8,3470.8,2.26]
[1721144610208,2.88059,3471.5,3470.8,2.26]
[1721144610547,5.92554,3472.8,3470.2,2.26]
[1721144610548,2.88094,3471.1,3470.2,2.26]
[1721144610745,2.88117,3470.9,3470.2,2.26]
[1721144611295,2.88088,3471.2,3470.2,2.26]
[1721144611540,0.04003846,3471.1,3470.3,0.514182]
[1721144611948,2.88068,3471.4,3470.3,3.395752]
[1721144612250,2.88024,3472.0,3470.3,3.395752]
[1721144612251,0.04003846,3471.0,3470.6,2.88127]
[1721144612547,2.88035,3471.8,3470.4,2.8815]
[1721144612548,2.88061,3471.5,3470.4,2.8815]
[1721144612706,2.88061,3471.5,3470.5,0.5655682]
[1721144612707,2.88079,3471.3,3470.5,0.5655682]
[1721144612912,2.9208647,3471.2,3470.5,0.5655682]
[1721144613099,2.9208647,3471.2,3470.3,0.514182]
[1721144613528,2.88094,3471.1,3470.3,0.514182]
[1721144613856,0.03939389,3471.0,3470.3,0.514182]
[1721144614016,0.03939389,3471.0,3470.7,2.88124]
[1721144614196,2.8801,3472.1,3470.7,2.88124]
[1721144614197,3.0,3472.3,3470.7,2.88124]
[1721144614397,2.88052,3471.6,3470.7,2.88124]
[1721144614767,2.88035,3471.8,3470.4,2.8815]
[1721144614895,6.29686,3472.4,3471.1,2.4071]
[1721144615143,0.03935917,3472.3,3471.5,2.88057]
[1721144616035,0.03935917,3472.3,3471.3,2.88069]
[1721144616418,0.03935917,3472.3,3471.2,0.52881]
[1721144616618,0.03935917,3472.3,3471.1,2.4071]
[1721144616899,2.8801,3472.1,3471.1,5.28801]
[1721144617100,2.8801,3472.1,3471.2,2.88078]
[1721144617322,2.88027,3471.9,3471.1,2.4071]
[1721144617701,2.88044,3471.7,3471.1,2.4071]
[1721144617900,5.80054872,3471.6,3471.1,2.4071]
[1721144618258,2.88082,3471.3,3470.5,2.3979]
[1721144618416,0.03944872,3471.6,3469.7,5.80206]
[1721144618417,2.88107,3471.0,3469.7,5.80206]
[1721144618735,2.92067914,3470.9,3469.9,2.8819]
[1721144619140,2.88118,3470.8,3469.8,2.88198]
[1721144619334,0.03952365,3470.7,3469.8,2.88198]
[1721144619540,0.03952365,3470.7,3470.0,2.88178]
[1721144619848,2.88073,3471.4,3470.3,2.88159]
[1721144620011,0.03952365,3470.6,3470.4,0.05762362]
[1721144620218,3.417,3471.7,3470.1,3.169908]
[1721144620421,2.88094,3471.1,3470.1,3.169868]
[1721144620742,2.88085,3471.2,3470.3,2.88157]
[1721144620909,0.03952365,3471.1,3470.4,0.66852977]
[1721144621116,2.88072,3471.4,3470.4,0.66852977]
[1721144621117,2.88081,3471.3,3470.4,0.66852977]
[1721144621309,2.88094,3471.1,3470.4,0.61090616]
[1721144621524,2.92031795,3471.0,3470.4,0.61090616]
[1721144621742,2.8811,3470.9,3470.4,0.61090616]
[1721144621944,2.8811,3470.9,3470.1,0.288178]
[1721144621945,0.03916172,3470.8,3470.1,0.288178]
[1721144622554,0.03916172,3470.8,3470.2,2.88161]
[1721144622858,0.03916172,3470.8,3470.1,0.288178]
[1721144623041,2.88112,3470.9,3470.1,0.288178]
[1721144623238,0.0391672,3470.7,3470.2,2.88165]
[1721144623456,2.88086,3471.2,3470.3,0.6051568]
[1721144623822,0.03915075,3471.1,3470.4,0.05762364]
[1721144624369,0.03915075,3471.1,3470.6,2.88133]
[1721144624518,0.03915075,3471.1,3470.9,2.88109]
[1721144624719,2.88036,3471.8,3471.0,0.05761385]
[1721144624946,0.03915808,3471.7,3471.0,0.29387039]
[1721144625145,4.3786,3474.0,3471.3,2.88074]
[1721144625146,2.87956,3472.8,3471.3,2.88074]
[1721144625350,0.03915808,3472.7,3471.3,2.88074]
[1721144625674,0.03915808,3472.7,3470.6,2.88128]
[1721144625821,2.88052,3471.6,3470.7,5.88126]
[1721144626016,2.91875808,3472.7,3470.5,3.0]
[1721144626017,3.417,3472.4,3470.5,2.88137]
[1721144626222,2.88069,3471.4,3470.6,0.57914268]
[1721144626422,2.88076,3471.3,3470.6,0.57914268]
[1721144626623,2.88085,3471.2,3470.6,0.57914268]
[1721144626830,2.92009218,3471.2,3470.4,2.3049]
[1721144627226,2.88118,3470.8,3470.1,0.288178]
[1721144627529,2.88118,3470.8,3469.8,2.3797]
[1721144627530,2.88135,3470.6,3469.8,2.3797]
[1721144627725,2.92067218,3470.5,3469.8,2.3797]
[1721144627970,2.92067218,3470.5,3469.3,2.88239]
[1721144627971,2.92067218,3470.5,3469.3,2.3797]
[1721144628125,2.88168,3470.2,3469.3,2.3797]
[1721144628325,2.88201,3469.8,3469.3,2.3797]
[1721144628535,0.03924218,3469.7,3469.3,2.3797]
[1721144628735,2.8822,3469.6,3468.7,2.88291]
[1721144628936,2.8822,3469.6,3468.8,0.81456]
[1721144629165,2.92150218,3469.5,3468.8,0.81456]
[1721144630138,2.88243,3469.3,3468.8,0.81456]
[1721144630367,0.03914528,3469.2,3468.8,0.81456]
[1721144630739,2.88243,3469.3,3468.8,0.81456]
[1721144631066,0.03893677,3469.2,3468.9,0.319426]
[1721144631242,0.03893677,3469.2,3469.1,2.88259]
[1721144631458,2.88152,3470.4,3469.4,2.88234]
[1721144631662,2.88149,3470.5,3469.5,5.16955]
[1721144631982,2.92022708,3470.4,3469.5,5.16955]
[1721144632149,0.03866708,3470.4,3469.6,3.687285]
[1721144632350,2.88152,3470.4,3469.6,0.805195]
[1721144632676,0.03871831,3470.3,3469.8,2.88198]
[1721144632859,0.03871831,3470.3,3469.5,2.2873]
[1721144633064,2.88187,3470.0,3469.1,2.88253]
[1721144633381,2.88193,3469.9,3469.2,0.3201956]
[1721144633581,2.92067209,3469.9,3469.2,0.3201956]
[1721144633784,2.92067209,3469.9,3468.9,0.319426]
[1721144633998,2.88225,3469.5,3468.9,0.319426]
[1721144634502,0.03874026,3469.4,3468.9,0.319426]
[1721144634674,0.03874026,3469.4,3468.3,2.4687]
[1721144634874,0.03874026,3469.4,3468.2,2.88332]
[1721144634875,2.88253,3469.2,3468.2,2.88332]
[1721144635108,2.88275,3468.9,3467.8,5.37481]
[1721144635397,2.88297,3468.7,3467.8,2.4912]
[1721144635564,0.03870001,3468.8,3467.9,2.88356]
[1721144635761,2.88284,3468.8,3468.0,3.420896]
[1721144635983,0.03870001,3468.7,3468.0,3.420896]
[1721144636182,0.03870001,3468.7,3468.0,0.537476]
[1721144636498,0.03870001,3468.7,3467.7,2.88372]
[1721144636499,2.88294,3468.7,3467.7,2.88372]
[1721144636799,2.88309,3468.5,3467.7,2.88375]
[1721144637161,2.88285,3468.8,3467.7,2.88375]
[1721144637496,2.88306,3468.6,3467.7,2.88375]
[1721144637734,2.8831,3468.5,3467.6,2.88383]
[1721144638005,2.92193001,3468.4,3467.6,0.30088099]
[1721144638167,2.88337,3468.2,3467.2,2.4615]
[1721144638361,2.88353,3468.0,3467.2,2.4615]
[1721144638597,0.03851152,3467.9,3467.2,2.4615]
[1721144638793,2.92210152,3467.9,3467.3,0.534573]
[1721144639101,2.92210152,3467.9,3467.0,2.88432]
[1721144639596,2.88372,3467.8,3466.8,2.8845]
[1721144639796,2.88385,3467.6,3466.6,5.35744]
[1721144639998,2.88385,3467.6,3466.7,2.88457]
[1721144640298,3.417,3468.2,3466.6,2.4728]
[1721144640299,2.8841,3467.3,3466.6,2.4728]
[1721144640506,2.92210734,3467.5,3466.7,0.24728]
[1721144640669,0.03806958,3467.2,3466.7,0.24728]
[1721144640985,0.03806958,3467.1,3466.8,2.94217835]
[1721144641304,0.03806958,3467.1,3467.0,14.16399]
[1721144641604,2.88276,3468.9,3468.0,2.88346]
[1721144641766,2.88276,3468.9,3468.1,0.288346]
[1721144641970,2.91698211,3468.8,3468.1,0.288346]
[1721144642610,2.88309,3468.5,3467.7,2.88375]
[1721144642906,0.03412211,3468.8,3468.0,2.88349]
[1721144643110,0.03424114,3468.4,3468.0,2.88349]
[1721144643323,3.417,3469.6,3468.1,0.05766401]
[1721144643482,1.6415,3470.6,3468.0,2.2799]
[1721144643483,0.03424114,3468.3,3468.2,3.1170964]
[1721144643667,2.88234,3469.4,3468.0,2.2799]
[1721144643668,2.88292,3468.7,3468.0,2.2799]
[1721144643877,2.88302,3468.6,3467.4,5.14059]
[1721144644196,2.88309,3468.5,3467.4,2.2566]
[1721144644410,2.88334,3468.2,3467.4,2.2566]
[1721144644771,2.88321,3468.4,3467.4,5.14054]
[1721144645006,0.03427775,3468.3,3467.5,0.514076]
[1721144645214,0.03427775,3468.3,3467.6,2.88378]
[1721144645377,2.88301,3468.6,3467.7,2.88368]
[1721144646314,6.417,3469.4,3467.4,2.2566]
[1721144646566,2.88223,3469.6,3468.4,2.8831]
[1721144646674,6.2988,3470.1,3468.6,2.883]
[1721144646675,0.0342448,3469.3,3468.6,2.883]
[1721144647009,0.0342448,3469.2,3468.6,2.883]
[1721144647231,0.0342448,3469.2,3468.5,0.28831]
[1721144647372,3.04,3470.1,3467.9,2.88351]
[1721144647373,2.88269,3469.0,3467.9,2.88351]
[1721144647573,2.88278,3468.9,3467.9,2.88351]
[1721144647825,2.91708155,3468.9,3467.9,2.88351]
[1721144648129,2.88317,3468.4,3467.4,2.884]
[1721144648273,2.88317,3468.4,3467.2,5.33586]
[1721144648476,2.88317,3468.4,3467.3,3.706088]
[1721144648710,0.03429423,3468.3,3467.3,0.822018]
[1721144648915,0.03429423,3468.3,3467.5,2.88392]
[1721144649152,0.03429423,3468.3,3467.2,2.4517]
[1721144649272,0.03429423,3468.3,3467.9,2.88356]
[1721144649477,2.88295,3468.7,3467.9,2.88356]
[1721144649677,0.03430338,3468.2,3467.9,2.88356]
[1721144649878,1.6415,3470.1,3468.2,2.3]
[1721144650072,1.6415,3470.1,3468.5,2.88302]
[1721144650073,2.88249,3469.3,3468.5,2.88302]
[1721144650701,2.88234,3469.4,3468.5,2.88302]
[1721144650904,2.88223,3469.6,3468.6,2.88293]
[1721144651110,2.88223,3469.6,3468.6,2.94058349]
[1721144651310,2.88235,3469.4,3468.7,0.58237435]
[1721144651475,2.8821,3469.7,3468.7,0.58237435]
[1721144651675,2.88178,3470.1,3468.5,2.88305]
[1721144651875,2.88102,3471.0,3468.5,2.88305]
[1721144651876,0.03456519,3469.6,3469.3,2.4822]
[1721144652171,2.88114,3470.9,3469.5,2.88225]
[1721144652172,2.88161,3470.3,3469.5,2.88225]
[1721144652374,0.03456519,3470.2,3469.7,2.88208]
[1721144652698,0.03456519,3470.2,3469.3,2.4822]
[1721144652961,3.417,3471.1,3469.6,2.88212]
[1721144653215,3.417,3471.1,3469.7,2.88207]
[1721144653216,2.88141,3470.6,3469.7,2.88207]
[1721144653582,2.88143,3470.5,3469.7,2.88207]
[1721144653777,0.03463655,3470.5,3469.5,2.88219]
[1721144654090,2.88151,3470.4,3469.5,2.88219]
[1721144654300,0.03463655,3470.5,3469.6,0.561261]
[1721144654649,0.03463655,3470.4,3469.7,2.88207]
[1721144654930,2.91620655,3470.4,3469.6,3.443431]
[1721144655101,2.88157,3470.4,3469.6,3.443431]
[1721144655301,0.03463655,3470.3,3469.7,2.88207]
[1721144655489,0.03463655,3470.3,3469.8,0.6325501]
[1721144655694,3.417,3471.1,3469.8,0.6325501]
[1721144655695,2.88126,3470.7,3469.8,0.6325501]
[1721144656029,6.29793,3471.1,3469.0,2.88267]
[1721144656030,2.88185,3470.0,3469.0,2.88267]
[1721144656200,2.88202,3469.8,3468.8,2.88283]
[1721144656404,2.88185,3470.0,3468.9,2.88267]
[1721144656405,2.8821,3469.7,3468.9,2.88267]
[1721144656593,0.03480227,3469.7,3468.9,2.88267]
[1721144656812,2.91690227,3469.7,3468.9,2.88267]
[1721144657139,2.88243,3469.3,3468.7,2.3896]
[1721144657446,2.88212,3469.7,3468.4,2.88312]
[1721144657634,6.457,3470.4,3468.2,2.2798]
[1721144657635,0.03480227,3469.2,3468.9,2.8827]
[1721144657949,0.55,3470.3,3468.7,2.88285]
[1721144657950,2.88209,3469.7,3468.7,2.88285]
[1721144658157,2.88209,3469.7,3468.9,2.88275]
[1721144658158,0.03480227,3469.6,3468.9,2.88275]
[1721144659729,0.03480227,3469.6,3468.5,3.399372]
[1721144659934,2.88242,3469.4,3468.5,0.516292]
[1721144660165,2.88188,3470.0,3468.2,2.2798]
[1721144660166,2.91725227,3469.3,3468.2,2.2798]
[1721144660481,2.88277,3468.9,3468.2,2.2798]
[1721144660822,2.88224,3469.6,3468.2,2.2798]
[1721144660823,0.03465774,3468.8,3468.2,2.2798]
[1721144661023,0.03465774,3468.8,3468.3,2.88319]
[1721144661262,2.88268,3469.0,3468.2,2.2798]
[1721144661472,0.55,3469.6,3466.8,4.70297374]